bitfinex/quotes_BTCUSD_20230108
["timestamp","ask_amount","ask_price","bid_price","bid_amount"]
[1673218561071,0.00306717,16983.0,16982.0,6.09351105]
[1673218561316,0.00306717,16983.0,16982.0,6.66982835]
[1673218562058,0.00306717,16983.0,16982.0,6.27869645]
[1673218562059,0.00706717,16983.0,16982.0,6.27869645]
[1673218563065,0.00706717,16983.0,16982.0,6.80782496]
[1673218563812,0.00706717,16983.0,16982.0,6.8078146]
[1673218564065,0.00706717,16983.0,16982.0,6.80775647]
[1673218564336,0.00706717,16983.0,16982.0,6.46095647]
[1673218565096,0.00706717,16983.0,16982.0,5.93131525]
[1673218565337,0.00706717,16983.0,16982.0,6.46037527]
[1673218566100,0.00706717,16983.0,16982.0,6.22567525]
[1673218566348,0.00706717,16983.0,16982.0,5.62488121]
[1673218574476,0.00706717,16983.0,16982.0,5.79858121]
[1673218577071,9.565e-05,16983.0,16982.0,6.93119115]
[1673218577817,9.565e-05,16983.0,16982.0,6.40213113]
[1673218578087,9.565e-05,16983.0,16982.0,6.40154619]
[1673218578630,9.565e-05,16983.0,16982.0,5.79858121]
[1673218579090,9.565e-05,16983.0,16982.0,6.93060115]
[1673218579832,0.00398501,16984.0,16983.0,0.4]
[1673218580082,0.00398501,16984.0,16983.0,5.45698538]
[1673218580331,0.00398501,16984.0,16983.0,5.49240207]
[1673218581084,0.00398501,16984.0,16983.0,6.13217646]
[1673218581329,0.00698501,16984.0,16983.0,6.52911977]
[1673218581586,0.00698501,16984.0,16983.0,6.23475977]
[1673218581830,0.00698501,16984.0,16983.0,6.56453646]
[1673218584820,0.00698501,16984.0,16983.0,6.72359723]
[1673218588086,0.00698501,16984.0,16983.0,6.42923723]
[1673218588336,0.00698501,16984.0,16983.0,6.72359723]
[1673218591273,0.00698501,16984.0,16983.0,6.72358723]
[1673218591663,0.00698501,16984.0,16983.0,7.72358723]
[1673218591951,0.00798501,16984.0,16983.0,7.72358723]
[1673218592171,0.00698501,16984.0,16983.0,7.72358723]
[1673218592680,0.00698501,16984.0,16983.0,6.26441949]
[1673218593182,0.00698501,16984.0,16983.0,6.61708393]
[1673218593907,0.00698501,16984.0,16983.0,6.56441949]
[1673218594165,0.00698501,16984.0,16983.0,6.91712019]
[1673218596303,0.00698501,16984.0,16983.0,6.91713019]
[1673218600445,0.00698501,16984.0,16983.0,6.1817135]
[1673218600891,0.00698501,16984.0,16983.0,6.21713019]
[1673218601475,0.00698501,16984.0,16983.0,6.91713019]
[1673218601725,0.00686672,16984.0,16983.0,6.91713019]
[1673218604464,0.00686672,16984.0,16983.0,5.15927909]
[1673218604863,0.00686672,16984.0,16983.0,4.42309166]
[1673218605083,0.00686672,16984.0,16983.0,4.41459166]
[1673218605718,0.00686672,16984.0,16983.0,3.64424639]
[1673218606237,0.00686672,16984.0,16983.0,2.015648]
[1673218606238,0.35725928,16984.0,16983.0,2.015648]
[1673218606462,2.22471002,16984.0,16983.0,2.015648]
[1673218607496,2.22471002,16984.0,16983.0,1.288824]
[1673218607497,2.22171002,16984.0,16983.0,1.288824]
[1673218607757,2.04868583,16984.0,16983.0,1.421824]
[1673218608008,2.22171002,16984.0,16983.0,1.288824]
[1673218608261,2.24203358,16984.0,16983.0,1.421824]
[1673218608530,2.23803358,16984.0,16983.0,1.288824]
[1673218608762,2.24203358,16984.0,16983.0,1.372824]
[1673218609000,2.23803358,16984.0,16983.0,1.288824]
[1673218609256,2.24203358,16984.0,16983.0,1.421824]
[1673218609509,2.67059883,16984.0,16983.0,0.833]
[1673218609792,3.02324585,16984.0,16983.0,0.133]
[1673218610737,2.67059883,16984.0,16983.0,0.133]
[1673218611502,3.02324992,16984.0,16983.0,0.133]
[1673218611752,2.41412139,16984.0,16983.0,0.133]
[1673218612007,2.41412139,16984.0,16983.0,0.131825]
[1673218614162,2.23760207,16984.0,16983.0,0.131825]
[1673218614915,1.35368838,16984.0,16983.0,0.131825]
[1673218615172,2.23771791,16984.0,16983.0,0.131825]
[1673218615418,2.590369,16984.0,16983.0,0.13164294]
[1673218615666,2.23771791,16984.0,16983.0,0.13164294]
[1673218615881,1.35368838,16984.0,16983.0,0.13164294]
[1673218617644,1.08936405,16984.0,16983.0,0.13164294]
[1673218619695,0.91566405,16984.0,16983.0,0.13164294]
[1673218620914,0.73953228,16984.0,16983.0,0.13164294]
[1673218621388,0.73953228,16984.0,16983.0,1.01486694]
[1673218621389,0.02419028,16984.0,16983.0,1.01486694]
[1673218621788,0.02419028,16984.0,16983.0,2.7466705]
[1673218622383,0.02419028,16984.0,16983.0,3.93230254]
[1673218622653,0.02419028,16984.0,16983.0,4.93566123]
[1673218623946,0.02419028,16984.0,16983.0,5.5296089]
[1673218624130,0.02419028,16984.0,16983.0,6.1184329]
[1673218624887,0.02419028,16984.0,16983.0,6.08301621]
[1673218625139,0.00786672,16984.0,16983.0,6.08301621]
[1673218626653,0.00786672,16984.0,16983.0,5.78861621]
[1673218626914,0.00786672,16984.0,16983.0,6.08297621]
[1673218629214,0.00786672,16984.0,16983.0,6.1183929]
[1673218629734,0.00786672,16984.0,16983.0,4.3519209]
[1673218629956,0.00786672,16984.0,16983.0,6.1183929]
[1673218630737,0.00786672,16984.0,16983.0,6.2914929]
[1673218633222,0.00786672,16984.0,16983.0,6.25607621]
[1673218634226,0.00786672,16984.0,16983.0,5.65607621]
[1673218635517,0.00779737,16984.0,16983.0,5.65609621]
[1673218638531,0.00779737,16984.0,16983.0,5.66459621]
[1673218642874,0.00779737,16984.0,16983.0,5.66450611]
[1673218644834,0.00779737,16984.0,16983.0,5.6999228]
[1673218645081,0.00779737,16984.0,16983.0,5.6999028]
[1673218649380,0.00779737,16984.0,16980.0,1.64945362]
[1673218649638,0.24547526,16984.0,16983.0,3.2122889]
[1673218649896,0.00779737,16984.0,16983.0,4.24935547]
[1673218650171,0.00779737,16984.0,16983.0,4.28478216]
[1673218650661,0.00779737,16984.0,16983.0,4.24936547]
[1673218651430,0.00779737,16984.0,16983.0,4.54936547]
[1673218651716,0.00779737,16984.0,16983.0,4.55786547]
[1673218656727,0.00779737,16984.0,16983.0,4.26346547]
[1673218657222,0.00779737,16984.0,16983.0,3.85787547]
[1673218657943,0.00779737,16984.0,16983.0,4.20764369]
[1673218658457,0.00779737,16984.0,16983.0,5.17187702]
[1673218659462,0.00779737,16984.0,16983.0,5.34803601]
[1673218659714,0.00779737,16984.0,16983.0,5.70007923]
[1673218664364,0.00779737,16984.0,16983.0,5.00007923]
[1673218665401,0.00779737,16984.0,16983.0,5.70007923]
[1673218666034,0.00779737,16984.0,16983.0,5.38342971]
[1673218667135,0.00779737,16984.0,16983.0,5.08901971]
[1673218667382,0.00779737,16984.0,16983.0,5.38341971]
[1673218668394,0.0055964,16984.0,16983.0,5.38341971]
[1673218669258,0.0055964,16984.0,16983.0,5.21051971]
[1673218671301,0.0055964,16984.0,16983.0,5.56332429]
[1673218671807,0.0055964,16984.0,16983.0,5.56333429]
[1673218673587,0.0055964,16984.0,16983.0,5.21052971]
[1673218673828,0.0055964,16984.0,16983.0,4.51052971]
[1673218674893,0.0055964,16984.0,16983.0,5.17511302]
[1673218675864,0.0055964,16984.0,16983.0,4.91611971]
[1673218676122,0.0055964,16984.0,16983.0,5.21052971]
[1673218681408,0.0055964,16984.0,16983.0,4.51052971]
[1673218681882,0.0055964,16984.0,16983.0,5.21052971]
[1673218687827,0.0055964,16984.0,16983.0,4.51052971]
[1673218688857,0.0055964,16984.0,16983.0,5.21052971]
[1673218689101,0.00551472,16984.0,16983.0,5.21052971]
[1673218689354,0.00551472,16984.0,16983.0,5.21051971]
[1673218690197,0.00551472,16984.0,16983.0,5.17510302]
[1673218690962,0.00551472,16984.0,16983.0,5.56344467]
[1673218691654,0.00551472,16984.0,16983.0,5.29595567]
[1673218691907,0.00551472,16984.0,16983.0,5.66374067]
[1673218693410,0.00551472,16984.0,16983.0,5.29595567]
[1673218693657,0.00551472,16984.0,16983.0,5.66374067]
[1673218694881,0.00551472,16984.0,16983.0,3.73678313]
[1673218694882,0.22493472,16984.0,16983.0,3.73678313]
[1673218695144,0.98832803,16984.0,16983.0,2.65146677]
[1673218695654,2.13652326,16984.0,16983.0,2.474972]
[1673218696157,1.87219893,16984.0,16983.0,2.474972]
[1673218696415,0.98832803,16984.0,16983.0,2.474972]
[1673218696663,0.76890803,16984.0,16983.0,2.474972]
[1673218696912,0.59277626,16984.0,16983.0,2.65146677]
[1673218697160,0.59277626,16984.0,16983.0,2.474972]
[1673218698175,2.43280335,16984.0,16981.0,0.17649477]
[1673218698425,1.13960719,16982.0,16979.0,0.76655271]
[1673218698671,1.13960719,16982.0,16980.0,0.7]
[1673218698672,1.27585867,16981.0,16980.0,0.7]
[1673218698941,1.03818078,16981.0,16980.0,0.7]
[1673218699184,1.03818078,16981.0,16979.0,0.59005794]
[1673218699444,0.86160746,16980.0,16979.0,0.59005794]
[1673218700024,1.27449884,16980.0,16979.0,0.588936]
[1673218700225,1.64228384,16980.0,16979.0,0.589936]
[1673218700477,1.27449884,16980.0,16979.0,0.588936]
[1673218700737,1.27449884,16980.0,16979.0,0.589936]
[1673218700738,1.29049884,16980.0,16979.0,0.589936]
[1673218700999,1.27449884,16980.0,16979.0,0.588936]
[1673218701275,1.29049884,16980.0,16979.0,0.589936]
[1673218701542,0.79667638,16980.0,16979.0,0.589936]
[1673218702019,0.79667638,16980.0,16979.0,1.178898]
[1673218706035,0.78067638,16980.0,16979.0,1.177898]
[1673218706316,0.79367638,16980.0,16979.0,1.178898]
[1673218714704,0.61997638,16980.0,16979.0,1.178898]
[1673218716177,0.61997638,16980.0,16979.0,1.17879433]
[1673218725831,0.61997638,16980.0,16979.0,1.87879433]
[1673218726316,0.61997638,16980.0,16979.0,2.17879433]
[1673218727350,0.61997638,16980.0,16979.0,2.76747333]
[1673218729381,0.61997638,16980.0,16979.0,3.13525833]
[1673218729853,0.61997638,16980.0,16979.0,2.43525833]
[1673218730091,0.61997638,16980.0,16979.0,2.06747333]
[1673218731346,0.61997638,16980.0,16979.0,2.46747333]
[1673218732848,0.61997638,16980.0,16979.0,2.76747333]
[1673218733829,0.61997638,16980.0,16979.0,3.13525833]
[1673218734088,0.61997638,16980.0,16979.0,2.46747333]
[1673218737271,0.61997638,16980.0,16979.0,1.76747333]
[1673218738228,0.61997638,16980.0,16979.0,2.6439681]
[1673218740061,0.61997638,16980.0,16979.0,1.9439681]
[1673218741082,0.61997638,16980.0,16979.0,1.76747333]
[1673218743324,0.7965497,16980.0,16979.0,1.76747333]
[1673218745323,0.7965497,16980.0,16979.0,1.17851133]
[1673218745580,0.7965497,16980.0,16979.0,0.589962]
[1673218745581,2.12106858,16980.0,16979.0,0.589962]
[1673218745831,2.48885358,16980.0,16979.0,0.589962]
[1673218746075,2.12106858,16980.0,16979.0,0.589962]
[1673218746325,2.48885358,16980.0,16979.0,0.589962]
[1673218746586,2.12106858,16980.0,16979.0,0.589962]
[1673218747126,2.48885358,16980.0,16979.0,0.589962]
[1673218747594,2.12106858,16980.0,16979.0,0.589962]
[1673218747839,2.48885358,16980.0,16979.0,0.589962]
[1673218748096,2.12106858,16980.0,16979.0,0.589962]
[1673218748362,2.48885358,16980.0,16979.0,0.589962]
[1673218748862,2.43144433,16980.0,16979.0,0.589962]
[1673218749111,2.48885358,16980.0,16979.0,0.589962]
[1673218749405,2.12106858,16980.0,16979.0,0.589962]
[1673218749648,2.48885358,16980.0,16979.0,0.589962]
[1673218749910,2.12106858,16980.0,16979.0,0.589962]
[1673218750156,2.48885358,16980.0,16979.0,0.589962]
[1673218750403,2.29769625,16980.0,16979.0,0.589962]
[1673218750768,2.12106858,16980.0,16979.0,0.589962]
[1673218750988,2.29476858,16980.0,16979.0,0.589962]
[1673218751216,2.66255358,16980.0,16979.0,0.589962]
[1673218751472,2.47137621,16980.0,16979.0,0.589962]
[1673218751717,2.66255358,16980.0,16979.0,0.589962]
[1673218751958,2.83916074,16980.0,16979.0,0.589962]
[1673218752217,2.47137574,16980.0,16979.0,0.589962]
[1673218752461,2.66255358,16980.0,16979.0,0.589962]
[1673218753219,2.83915618,16980.0,16979.0,0.589962]
[1673218753477,2.83913932,16980.0,16979.0,0.589962]
[1673218753987,2.11870323,16980.0,16979.0,0.589962]
[1673218754226,2.48648823,16980.0,16979.0,0.589962]
[1673218754486,2.11870323,16980.0,16979.0,0.589962]
[1673218754763,2.11870323,16980.0,16979.0,0.001]
[1673218754764,2.48648823,16980.0,16979.0,0.001]
[1673218755268,2.66255358,16980.0,16979.0,0.001]
[1673218755522,2.29476858,16980.0,16979.0,0.001]
[1673218755849,2.66255358,16980.0,16979.0,0.001]
[1673218756529,2.29476858,16980.0,16979.0,0.001]
[1673218756743,2.47132176,16980.0,16979.0,0.001]
[1673218757005,2.83910676,16980.0,16979.0,0.001]
[1673218757269,2.66255358,16980.0,16979.0,0.001]
[1673218757558,2.83909405,16980.0,16979.0,0.001]
[1673218757808,2.11865796,16980.0,16979.0,0.001]
[1673218758106,2.48644296,16980.0,16979.0,0.001]
[1673218758382,3.16719385,16980.0,16979.0,0.001]
[1673218758573,3.16719385,16980.0,16977.0,0.10415383]
[1673218758574,0.21979043,16978.0,16977.0,0.10415383]
[1673218758825,2.13976141,16978.0,16977.0,0.10415383]
[1673218759082,3.54698677,16978.0,16977.0,0.10415383]
[1673218759333,3.02387819,16978.0,16977.0,0.10415383]
[1673218759548,3.38695747,16978.0,16977.0,0.10415383]
[1673218760402,3.40195747,16978.0,16977.0,0.10415383]
[1673218762920,4.26151213,16978.0,16977.0,0.10415383]
[1673218763179,5.29190984,16978.0,16977.0,0.10415383]
[1673218763426,4.43930523,16978.0,16977.0,0.10415383]
[1673218763680,5.55294796,16978.0,16977.0,0.10415383]
[1673218763927,5.55294796,16978.0,16973.0,0.63308628]
[1673218763928,0.92689617,16977.0,16970.0,1.11597186]
[1673218764182,0.92689617,16977.0,16974.0,0.00099408]
[1673218764183,1.21075399,16976.0,16974.0,0.00099408]
[1673218764441,1.21075399,16976.0,16973.0,0.989144]
[1673218764442,0.1734,16976.0,16973.0,0.989144]
[1673218764694,0.41107789,16976.0,16973.0,1.578315]
[1673218764961,0.63232073,16975.0,16973.0,1.578315]
[1673218767010,0.64632073,16975.0,16973.0,1.578315]
[1673218773129,0.64632073,16975.0,16973.0,1.5141059]
[1673218773344,0.64632073,16975.0,16973.0,1.5091059]
[1673218774811,0.69867781,16974.0,16973.0,1.5091059]
[1673218775041,0.69867781,16974.0,16973.0,2.2091059]
[1673218775533,0.69867781,16974.0,16973.0,2.5768909]
[1673218776284,0.71267781,16974.0,16973.0,1.878315]
[1673218776753,0.71267781,16974.0,16973.0,0.589171]
[1673218782951,0.71267781,16974.0,16973.0,1.178342]
[1673218795251,0.71267781,16974.0,16973.0,1.878342]
[1673218797479,0.71267781,16974.0,16973.0,2.05445285]
[1673218798351,0.71257763,16974.0,16973.0,2.05445285]
[1673218798871,0.71257763,16974.0,16973.0,1.878342]
[1673218799099,0.71257763,16974.0,16973.0,2.05445285]
[1673218800886,0.014,16974.0,16973.0,2.74168311]
[1673218801153,0.014,16974.0,16973.0,5.73044906]
[1673218801420,0.01020596,16974.0,16973.0,4.52184861]
[1673218801736,0.00599186,16974.0,16973.0,5.50760725]
[1673218801947,0.00599186,16974.0,16973.0,4.58336987]
[1673218802189,0.00599186,16974.0,16973.0,5.44615392]
[1673218802447,0.00599186,16974.0,16973.0,4.91781711]
[1673218802690,0.00599186,16974.0,16973.0,6.49704745]
[1673218802938,0.00599186,16974.0,16973.0,6.49475685]
[1673218803187,0.00080586,16974.0,16973.0,6.49475685]
[1673218803701,0.00080586,16974.0,16973.0,5.57045801]
[1673218803950,0.00080586,16974.0,16973.0,5.96604808]
[1673218804467,0.00080586,16974.0,16973.0,6.49438678]
[1673218805077,0.00080586,16974.0,16973.0,6.78896678]
[1673218805387,0.00080586,16974.0,16973.0,5.86503801]
[1673218806543,0.00080586,16974.0,16973.0,5.57045801]
[1673218806806,0.00080586,16974.0,16973.0,6.01144947]
[1673218807042,0.00080586,16974.0,16973.0,5.57045801]
[1673218807300,0.00080586,16974.0,16973.0,6.01129086]
[1673218808053,0.00080586,16974.0,16973.0,5.57045801]
[1673218808301,0.00080586,16974.0,16973.0,5.57035357]
[1673218808811,0.00080586,16974.0,16973.0,5.96240336]
[1673218809088,0.00080586,16974.0,16973.0,6.55760799]
[1673218809345,0.00080586,16974.0,16973.0,6.02926929]
[1673218809617,0.00080586,16974.0,16973.0,6.52421794]
[1673218809618,0.000381,16974.0,16973.0,6.52421794]
[1673218812166,0.000381,16974.0,16973.0,6.55760799]
[1673218812653,0.000381,16974.0,16973.0,6.75760799]
[1673218812911,0.00544788,16980.0,16974.0,1.11235169]
[1673218813182,0.00544788,16980.0,16979.0,0.1736]
[1673218813434,0.59173023,16980.0,16979.0,2.82160726]
[1673218813689,0.59173023,16980.0,16979.0,2.307977]
[1673218814182,0.59173023,16980.0,16979.0,2.640336]
[1673218814432,0.60473023,16980.0,16979.0,2.652336]
[1673218814681,0.60473023,16980.0,16979.0,3.020121]
[1673218815938,0.60473023,16980.0,16979.0,2.652336]
[1673218816188,0.60473023,16980.0,16979.0,3.020121]
[1673218820181,0.60473023,16980.0,16979.0,2.320121]
[1673218821954,0.60473023,16980.0,16979.0,1.952336]
[1673218827227,0.60473023,16980.0,16979.0,2.652336]
[1673218829831,0.01844788,16980.0,16979.0,2.652336]
[1673218830351,0.01844788,16980.0,16979.0,2.952336]
[1673218830611,0.01844788,16980.0,16979.0,3.320121]
[1673218830860,0.01844788,16980.0,16979.0,2.952336]
[1673218831112,0.01844788,16980.0,16979.0,2.652336]
[1673218832875,0.01844788,16980.0,16979.0,3.020121]
[1673218836184,0.01844788,16980.0,16979.0,2.320121]
[1673218836668,0.01844788,16980.0,16979.0,1.952336]
[1673218837411,0.01844788,16980.0,16979.0,2.652336]
[1673218838428,0.01844788,16980.0,16979.0,3.020121]
[1673218838650,0.01844788,16980.0,16979.0,2.652336]
[1673218843453,0.01844788,16980.0,16979.0,1.952336]
[1673218844212,0.01844788,16980.0,16979.0,2.652336]
[1673218847198,0.19473903,16980.0,16979.0,2.652336]
[1673218847950,0.18473903,16980.0,16979.0,2.652336]
[1673218848923,0.44917576,16980.0,16979.0,2.652336]
[1673218849393,1.51010318,16980.0,16979.0,1.952336]
[1673218850225,1.95150389,16980.0,16979.0,1.952336]
[1673218850560,1.51010318,16980.0,16979.0,1.952336]
[1673218850961,1.95150389,16980.0,16979.0,1.952336]
[1673218851176,1.51010318,16980.0,16979.0,1.952336]
[1673218851436,2.3257513,16980.0,16979.0,1.952336]
[1673218851684,1.68706716,16980.0,16979.0,1.952336]
[1673218852181,2.32574963,16980.0,16979.0,1.952336]
[1673218852435,1.68706716,16980.0,16979.0,1.952336]
[1673218853184,1.5107312,16980.0,16979.0,1.952336]
[1673218853405,1.33431481,16980.0,16979.0,1.952336]
[1673218854457,1.33431481,16980.0,16979.0,1.778886]
[1673218854718,0.45021681,16980.0,16979.0,1.778886]
[1673218854973,1.33421907,16980.0,16979.0,1.778886]
[1673218855235,0.45013099,16980.0,16979.0,1.778886]
[1673218858661,1.3342266,16980.0,16979.0,1.778886]
[1673218859841,1.68732785,16980.0,16979.0,1.778886]
[1673218860083,1.51064299,16980.0,16979.0,1.778886]
[1673218861313,1.51064299,16980.0,16979.0,1.189924]
[1673218861531,1.9520437,16980.0,16979.0,1.189924]
[1673218861782,1.87842799,16980.0,16979.0,1.189924]
[1673218862038,2.3198287,16980.0,16979.0,1.189924]
[1673218862277,1.95201034,16980.0,16979.0,1.189924]
[1673218862553,1.68697895,16980.0,16979.0,1.189924]
[1673218863312,1.95201005,16980.0,16979.0,1.189924]
[1673218863813,1.51060934,16980.0,16979.0,1.189924]
[1673218864292,1.95201005,16980.0,16979.0,1.19058557]
[1673218864558,1.68697895,16980.0,16979.0,1.19058557]
[1673218865334,1.68697895,16980.0,16979.0,1.189924]
[1673218865583,1.95196812,16980.0,16979.0,1.189924]
[1673218865849,1.51056741,16980.0,16979.0,1.189924]
[1673218867880,1.51056741,16980.0,16979.0,1.1905865]
[1673218868125,1.51056741,16980.0,16979.0,1.189924]
[1673218868369,1.68719753,16980.0,16979.0,1.189924]
[1673218868631,1.33407696,16980.0,16979.0,1.189924]
[1673218870985,0.44998135,16980.0,16979.0,1.189924]
[1673218872950,1.33408486,16980.0,16979.0,1.189924]
[1673218873450,1.51057531,16980.0,16979.0,1.189924]
[1673218874427,1.68723052,16980.0,16979.0,1.189924]
[1673218874935,1.33410995,16980.0,16979.0,1.189924]
[1673218875554,1.68723052,16980.0,16979.0,1.189924]
[1673218875893,1.33410995,16980.0,16979.0,1.189924]
[1673218877326,0.45000644,16980.0,16979.0,1.189924]
[1673218879974,0.18501727,16980.0,16979.0,1.889924]
[1673218884596,0.00836206,16980.0,16979.0,1.889924]
[1673218885089,0.18501727,16980.0,16979.0,1.889924]
[1673218886630,0.00836206,16980.0,16979.0,1.889924]
[1673218886843,0.18501727,16980.0,16979.0,1.889924]
[1673218887338,0.00836206,16980.0,16979.0,1.889924]
[1673218889774,0.00836206,16980.0,16979.0,2.40355426]
[1673218890026,0.00836206,16980.0,16979.0,1.189924]
[1673218890840,0.00836206,16980.0,16979.0,1.36597916]
[1673218891095,0.00836206,16980.0,16979.0,2.06597916]
[1673218891334,0.00836206,16980.0,16979.0,2.36597916]
[1673218891578,0.00836206,16980.0,16979.0,1.889924]
[1673218900161,0.00836206,16980.0,16979.0,2.57960942]
[1673218900418,0.00836206,16980.0,16979.0,2.06597916]
[1673218900668,0.00836206,16980.0,16979.0,1.889924]
[1673218908021,0.00836206,16980.0,16979.0,2.06597916]
[1673218908528,0.00836206,16980.0,16979.0,2.57960942]
[1673218908768,0.00836206,16980.0,16979.0,2.06597916]
[1673218909260,0.00836206,16980.0,16979.0,2.57960942]
[1673218909506,0.00836206,16980.0,16979.0,2.06597916]
[1673218909778,0.00836206,16980.0,16979.0,1.889924]
[1673218910033,0.18501727,16980.0,16979.0,1.189924]
[1673218910579,0.18501727,16980.0,16979.0,1.889924]
[1673218913147,1.33410267,16980.0,16979.0,1.189924]
[1673218913879,0.45000644,16980.0,16979.0,1.189924]
[1673218914136,1.33409795,16980.0,16979.0,1.189924]
[1673218914957,0.45000644,16980.0,16979.0,1.189924]
[1673218915716,1.33409658,16980.0,16979.0,1.189924]
[1673218917873,0.45000644,16980.0,16979.0,1.189924]
[1673218918648,0.18501727,16980.0,16979.0,1.189924]
[1673218918899,0.45000644,16980.0,16979.0,1.189924]
[1673218919162,0.18501727,16980.0,16979.0,1.889924]
[1673218919660,0.18501727,16980.0,16979.0,1.89058645]
[1673218923730,0.18501727,16980.0,16979.0,2.36664161]
[1673218923993,0.00836206,16980.0,16979.0,2.06664161]
[1673218924486,0.18501727,16980.0,16979.0,1.889924]
[1673218925260,0.18501727,16980.0,16979.0,1.189924]
[1673218926320,0.18501727,16980.0,16979.0,1.889924]
[1673218926850,0.18501727,16980.0,16979.0,2.06597916]
[1673218927271,0.00836206,16980.0,16979.0,2.06597916]
[1673218927602,0.00836206,16980.0,16979.0,2.57960942]
[1673218927869,0.00836206,16980.0,16979.0,3.37815654]
[1673218928136,0.00836206,16980.0,16979.0,3.51213962]
[1673218928443,0.00836206,16980.0,16979.0,3.37794799]
[1673218928909,0.00836206,16980.0,16979.0,2.36664161]
[1673218929697,0.00836206,16980.0,16979.0,2.06664161]
[1673218930194,0.00836206,16980.0,16979.0,2.06597916]
[1673218930422,0.18501727,16980.0,16979.0,1.889924]
[1673218931170,0.00836206,16980.0,16979.0,2.06597916]
[1673218931433,0.00836206,16980.0,16979.0,2.06727018]
[1673218932981,0.00836206,16980.0,16979.0,3.14498319]
[1673218933234,0.00836206,16980.0,16979.0,2.88090044]
[1673218933800,0.00836206,16980.0,16979.0,3.37946686]
[1673218935150,0.00836206,16980.0,16979.0,3.37945212]
[1673218935397,0.00836206,16980.0,16979.0,3.37945379]
[1673218936154,0.00836206,16980.0,16979.0,3.37682963]
[1673218936401,0.00836206,16980.0,16979.0,3.14498319]
[1673218936904,0.00836206,16980.0,16979.0,3.37682912]
[1673218937662,0.00836206,16980.0,16979.0,3.37683206]
[1673218937905,0.00836206,16980.0,16979.0,3.14498319]
[1673218938416,0.00836206,16980.0,16979.0,3.37681501]
[1673218939397,0.00836206,16980.0,16979.0,3.74460001]
[1673218939644,0.00836206,16980.0,16979.0,3.37681501]
[1673218940663,0.00836206,16980.0,16979.0,3.04460001]
[1673218941672,0.00836206,16980.0,16979.0,4.09671034]
[1673218941919,0.00836206,16980.0,16979.0,4.33356201]
[1673218945956,0.00836206,16980.0,16979.0,4.31055201]
[1673218946862,0.00836206,16980.0,16979.0,4.07872019]
[1673218947444,0.00836206,16980.0,16979.0,3.37872019]
[1673218947696,0.00836206,16980.0,16979.0,3.01093519]
[1673218947903,0.00836206,16980.0,16979.0,3.37872019]
[1673218948167,0.00836206,16980.0,16979.0,3.11463744]
[1673218948386,0.00836206,16980.0,16979.0,3.37872019]
[1673218948634,0.00836206,16980.0,16979.0,4.07872019]
[1673218948903,0.00836206,16980.0,16979.0,3.81463744]
[1673218949919,0.00836206,16980.0,16979.0,3.30100718]
[1673218950164,0.00836206,16980.0,16979.0,2.93322218]
[1673218950928,0.00836206,16980.0,16979.0,3.44685244]
[1673218951184,0.00836206,16980.0,16979.0,3.81463744]
[1673218951948,0.00836206,16980.0,16979.0,4.07872019]
[1673218952690,0.00836206,16980.0,16979.0,3.81463744]
[1673218953688,0.00836206,16980.0,16979.0,4.07872019]
[1673218954432,0.00836206,16980.0,16979.0,4.48283274]
[1673218954688,0.00836206,16980.0,16979.0,3.55242019]
[1673218955687,0.00836206,16980.0,16979.0,3.98833744]
[1673218955941,0.00836206,16980.0,16979.0,4.48276545]
[1673218957435,0.00836206,16980.0,16979.0,4.25242019]
[1673218957691,0.00836206,16980.0,16979.0,4.48275851]
[1673218957940,0.00836206,16980.0,16979.0,3.96912825]
[1673218958195,0.00836206,16980.0,16979.0,3.73878993]
[1673218958439,0.00836206,16980.0,16979.0,3.10569571]
[1673218958690,0.00836206,16980.0,16979.0,4.11375303]
[1673218958945,0.00836206,16980.0,16979.0,4.6575932]
[1673218959485,0.00836206,16980.0,16979.0,5.09825388]
[1673218959734,0.00836206,16980.0,16979.0,4.83364836]
[1673218960231,0.00836206,16980.0,16979.0,5.09825088]
[1673218961004,0.00836206,16980.0,16979.0,4.65811297]
[1673218962363,0.00836206,16980.0,16979.0,5.17279009]
[1673218962667,0.00836206,16980.0,16979.0,5.34832548]
[1673218962917,0.00836206,16980.0,16979.0,5.16821515]
[1673218964074,0.00836206,16980.0,16979.0,5.52092578]
[1673218964579,0.00836206,16980.0,16979.0,5.52093021]
[1673218964825,0.00836206,16980.0,16979.0,5.16821515]
[1673218965927,0.00836206,16980.0,16979.0,5.52087521]
[1673218966180,0.00836206,16980.0,16979.0,5.16821515]
[1673218966847,0.00825695,16980.0,16979.0,5.16821515]
[1673218967513,0.00825695,16980.0,16979.0,5.02254724]
[1673218967722,0.00825695,16980.0,16979.0,5.05593729]
[1673218968258,0.00825695,16980.0,16979.0,4.72807724]
[1673218969534,0.00584663,16980.0,16979.0,4.72807724]
[1673218970779,0.00584663,16980.0,16979.0,5.81745458]
[1673218971029,0.00584663,16980.0,16979.0,5.30277746]
[1673218971547,0.00281978,16980.0,16979.0,5.82581197]
[1673218971826,0.00369303,16981.0,16980.0,0.4]
[1673218972060,0.00369303,16981.0,16980.0,5.5404275]
[1673218972302,0.00369303,16981.0,16980.0,6.98423304]
[1673218972555,0.00369303,16981.0,16980.0,7.71094477]
[1673218972812,0.00369303,16981.0,16980.0,6.98423304]
[1673218973117,0.00969303,16981.0,16980.0,7.11273304]
[1673218973333,0.00969303,16981.0,16980.0,7.825407]
[1673218974096,0.00969303,16981.0,16980.0,7.29644488]
[1673218974345,0.00969303,16981.0,16980.0,6.90973258]
[1673218974621,0.00969303,16981.0,16980.0,7.82459573]
[1673218974877,0.00969303,16981.0,16980.0,7.29643316]
[1673218975115,0.00969303,16981.0,16980.0,6.90973258]
[1673218976088,0.00969303,16981.0,16980.0,7.08187061]
[1673218976583,0.00969303,16981.0,16980.0,8.36819425]
[1673218976838,0.00969303,16981.0,16980.0,15.18187061]
[1673218977101,0.00969303,16981.0,16980.0,15.09843378]
[1673218977353,0.00969303,16981.0,16980.0,15.69843378]
[1673218978100,0.00969303,16981.0,16980.0,15.40401378]
[1673218978349,0.00969303,16981.0,16980.0,15.69844378]
[1673218978605,0.00969303,16981.0,16980.0,15.17028121]
[1673218978848,0.00969303,16981.0,16980.0,15.69844378]
[1673218979351,0.00969303,16981.0,16980.0,14.18024174]
[1673218980382,0.00969303,16981.0,16980.0,14.67138976]
[1673218981634,0.00969303,16981.0,16980.0,7.17138976]
[1673218981887,0.00969303,16981.0,16980.0,7.47138976]
[1673218982131,0.00969303,16981.0,16980.0,14.97138976]
[1673218982603,0.00969303,16981.0,16980.0,14.31985273]
[1673218983104,0.00969303,16981.0,16980.0,6.81985273]
[1673218983606,0.00969303,16981.0,16980.0,14.31985273]
[1673218983863,0.00969303,16981.0,16980.0,14.61985273]
[1673218984359,0.00969303,16981.0,16980.0,13.57825273]
[1673218984609,0.00969303,16981.0,16980.0,6.07825273]
[1673218987674,0.00969303,16981.0,16980.0,6.25403941]